bitfinex/quotes_ETHUSD_20250420
["timestamp","ask_amount","ask_price","bid_price","bid_amount"]
[1745182816773,0.55,1587.3,1587.0,6.0]
[1745182816967,5.16035961,1587.1,1586.7,1.4233]
[1745182817277,5.16035961,1586.9,1586.7,1.4233]
[1745182817464,5.16035961,1586.9,1586.7,0.7]
[1745182817670,1.3011,1586.8,1586.7,0.7]
[1745182818282,4.3011,1586.8,1586.7,0.7]
[1745182818470,5.16035961,1586.2,1585.9,0.7233]
[1745182819485,0.55,1585.9,1585.4,0.7233]
[1745182819783,5.16035961,1585.8,1585.4,0.7233]
[1745182820072,5.16035961,1586.0,1585.4,0.7233]
[1745182821884,5.16035961,1585.8,1585.4,0.7233]
[1745182822450,5.71035961,1585.6,1585.5,0.0630565]
[1745182822756,5.16035961,1585.6,1585.1,0.7233]
[1745182823084,5.16035961,1585.6,1585.2,0.06306427]
[1745182823379,0.55,1585.7,1585.2,0.06306427]
[1745182823681,0.55,1585.7,1585.1,0.7233]
[1745182824045,0.55,1585.7,1585.2,0.06306099]
[1745182824260,0.55,1585.7,1585.1,0.7233]
[1745182825276,0.55,1585.7,1585.2,0.06306107]
[1745182825481,11.85939323,1586.0,1585.3,59.411]
[1745182825683,0.55,1585.9,1585.5,0.7233]
[1745182826454,6.14,1586.0,1585.5,0.7233]
[1745182827584,0.55,1585.9,1585.5,0.7233]
[1745182828181,6.14,1586.0,1585.6,0.06305619]
[1745182828390,9.47049323,1586.1,1585.7,5.426]
[1745182829185,0.55,1586.0,1585.7,5.426]
[1745182829390,0.55,1586.0,1585.8,5.426]
[1745182830583,0.55,1586.0,1585.5,0.5733]
[1745182830584,4.63026042,1586.0,1585.5,0.5733]
[1745182830788,6.26939323,1585.7,1585.6,5.426]
[1745182836466,0.55,1585.6,1585.3,53.986]
[1745182836667,0.55,1585.6,1585.4,5.427]
[1745182840612,0.55,1585.6,1585.4,5.49006989]
[1745182843313,5.71323247,1585.6,1585.4,5.49006989]
[1745182843809,5.92983247,1585.8,1585.4,5.49006989]
[1745182844033,5.04267345,1586.0,1585.5,0.5733]
[1745182844214,5.16323247,1586.0,1585.5,0.5733]
[1745182844514,5.16323247,1586.0,1585.6,0.06305163]
[1745182844874,5.16323247,1586.0,1585.5,0.5733]
[1745182845098,5.16323247,1586.0,1585.6,0.06305164]
[1745182845410,5.16323247,1586.0,1585.5,0.5733]
[1745182846497,5.14746607,1586.0,1585.5,0.5733]
[1745182848919,5.16323247,1585.6,1585.5,0.5733]
[1745182850405,5.16323247,1585.8,1585.5,0.63636362]
[1745182853507,5.71323247,1585.6,1585.5,5.435]
[1745182854007,0.55,1585.5,1585.3,53.986]
[1745182854185,5.95423247,1585.4,1585.3,53.986]
[1745182854391,5.95423247,1585.4,1585.3,59.421]
[1745182856437,1.341,1585.3,1584.8,54.011]
[1745182856601,5.71323247,1585.0,1584.9,5.435]
[1745182857237,1.341,1584.9,1584.8,54.011]
[1745182857445,7.5592111,1584.9,1584.8,59.446]
[1745182857738,10.5592111,1584.9,1584.8,59.446]
[1745182858644,10.481,1584.9,1584.8,59.446]
[1745182859002,10.5592111,1584.9,1584.8,59.446]
[1745182859448,10.5592111,1584.9,1584.8,54.011]
[1745182859449,6.53134892,1584.9,1584.8,54.011]
[1745182859608,6.04774309,1584.9,1584.8,59.446]
[1745182860518,4.4192111,1584.9,1584.8,59.446]
[1745182860719,4.341,1584.9,1584.8,59.446]
[1745182863644,5.72610877,1585.0,1584.8,59.446]
[1745182863813,5.72610877,1585.0,1584.8,60.2362]
[1745182864425,0.55,1584.9,1584.8,54.011]
[1745182864620,0.55,1584.9,1584.8,59.448]
[1745182867750,1.3042,1584.9,1584.8,54.011]
[1745182867954,11.07963199,1584.9,1584.7,5.437]
[1745182868262,0.55,1584.7,1584.3,0.88500661]
[1745182868546,0.55,1584.7,1584.4,5.437]
[1745182868750,0.53,1584.7,1584.4,5.437]
[1745182869351,9.8942,1584.9,1584.5,0.06310998]
[1745182869570,6.48030877,1585.1,1584.6,0.8219]
[1745182869771,6.48030877,1585.1,1584.7,0.0630921]
[1745182869934,6.48030877,1585.1,1584.8,5.438]
[1745182870633,0.55,1585.0,1584.8,5.438]
[1745182876475,0.0782111,1585.1,1584.8,5.438]
[1745182876675,3.0,1585.3,1584.9,0.7865]
[1745182876875,3.0,1585.3,1585.0,54.039]
[1745182877239,0.55,1585.2,1585.0,54.039]
[1745182877472,8.16555686,1585.3,1585.0,54.039]
[1745182883369,8.16555686,1585.1,1585.0,54.039]
[1745182884383,5.16555686,1585.1,1585.0,54.039]
[1745182889207,5.16555686,1585.3,1585.1,0.8182]
[1745182889501,5.16555686,1585.5,1585.2,5.534]
[1745182889703,5.16555686,1585.6,1585.2,5.59707679]
[1745182890169,5.16555686,1585.6,1585.3,0.8182]
[1745182890369,5.16555686,1585.6,1585.4,0.06306726]
[1745182890578,3.8936111,1585.8,1585.3,0.8182]
[1745182890784,5.16555686,1585.7,1585.3,0.8182]
[1745182890983,5.16555686,1585.7,1585.4,0.0630635]
[1745182891203,5.16555686,1585.9,1585.5,0.8177]
[1745182891510,5.16555686,1585.9,1585.6,5.534]
[1745182897924,5.16555686,1585.9,1585.7,0.06305348]
[1745182898216,5.16555686,1585.9,1585.8,54.017]
[1745182898721,5.71555686,1585.9,1585.8,54.017]
[1745182899013,5.71555686,1585.9,1585.8,59.55]
[1745182901219,5.71555686,1585.9,1585.8,59.549]
[1745182902885,16.5024927,1585.9,1585.8,59.549]
[1745182903086,6.30626905,1585.8,1585.1,0.7946]
[1745182903399,5.16555686,1585.3,1585.2,59.542]
[1745182908829,0.55,1585.6,1585.2,59.542]
[1745182908993,0.55,1585.6,1585.3,0.85996565]
[1745182909720,8.16555686,1585.7,1585.3,0.85996565]
[1745182909928,8.16555686,1585.7,1585.3,0.7969]
[1745182913232,8.11555686,1585.7,1585.3,0.7969]
[1745182913527,5.16555686,1585.5,1585.2,60.354]
[1745182914031,5.16555686,1585.5,1585.3,5.483]
[1745182916131,5.16555686,1585.5,1585.2,54.822]
[1745182916429,5.71555686,1585.5,1585.4,5.483]
[1745182917028,5.71555686,1585.5,1585.2,54.822]
[1745182917233,5.71555686,1585.5,1585.3,5.483]
[1745182917731,5.71555686,1585.5,1585.2,54.822]
[1745182918029,5.71555686,1585.5,1585.4,5.483]
[1745182926920,5.71555686,1585.5,1585.4,59.501]
[1745182929144,8.79376796,1585.5,1585.4,59.501]
[1745182929447,5.15340122,1585.5,1585.4,59.501]
[1745182929650,3.55,1585.5,1585.4,59.501]
[1745182937722,3.55,1585.5,1585.4,54.018]
[1745182938046,10.61555862,1585.5,1585.4,59.501]
[1745182938357,4.3084,1585.5,1585.4,59.501]
[1745182939022,4.3866111,1585.5,1585.4,59.501]
[1745182939325,6.53689165,1585.5,1585.4,59.501]
[1745182942094,12.84405027,1585.5,1585.4,59.501]
[1745182942253,12.76583917,1585.5,1585.4,59.501]
[1745182942589,18.90583917,1585.5,1585.4,59.501]
[1745182943882,18.90583917,1585.5,1584.9,0.7874]
[1745182943883,1.3771,1585.3,1585.2,54.024]
[1745182944064,12.76086796,1585.3,1585.2,59.437]
[1745182944397,18.99061119,1585.3,1585.2,59.437]
[1745182944711,18.99061119,1585.3,1585.2,54.024]
[1745182944879,18.99061119,1585.3,1585.2,59.437]
[1745182945474,21.82044833,1585.3,1585.2,54.024]
[1745182945861,21.82044833,1585.3,1585.2,59.437]
[1745182946813,24.82044833,1585.3,1585.2,54.024]
[1745182947109,9.85855378,1585.2,1585.0,54.027]
[1745182947262,5.79376796,1585.1,1585.0,54.027]
[1745182947460,5.79376796,1585.1,1585.0,59.441]
[1745182947998,6.27523473,1585.1,1585.0,59.441]
[1745182949209,6.19702363,1585.1,1585.0,59.441]
[1745182957199,5.16555686,1585.2,1585.0,60.2069]
[1745182957538,0.0782111,1585.4,1585.1,0.812]
[1745182957692,5.16555686,1585.5,1585.1,0.812]
[1745182958131,5.16555686,1585.5,1585.0,59.441]
[1745182958132,5.16555686,1585.5,1585.3,0.812]
[1745182958320,5.16555686,1585.5,1585.4,5.414]
[1745182959331,0.55,1585.4,1585.1,0.812]
[1745182959542,5.16555686,1585.3,1585.2,5.414]
[1745182960395,5.16555686,1585.5,1585.2,5.414]
[1745182960593,5.16555686,1585.5,1585.3,0.812]
[1745182961112,5.16555686,1585.5,1585.3,0.87507197]
[1745182963135,5.16555686,1585.5,1585.3,0.87506951]
[1745182964133,5.16555686,1585.5,1585.3,0.812]
[1745182971855,5.16555686,1585.5,1585.4,54.018]
[1745182978697,0.7929,1586.1,1585.5,0.7696]
[1745182978862,5.16555686,1586.0,1585.6,5.4750517]
[1745182979205,5.16555686,1585.8,1585.6,5.412]
[1745182980266,5.16555686,1585.8,1585.6,5.47505786]
[1745182981197,5.16555686,1586.0,1585.6,5.47505786]
[1745182981398,5.16555686,1586.0,1585.7,0.7815]
[1745182981872,5.16555686,1585.8,1585.4,60.018]
[1745182982074,5.16555686,1585.6,1585.5,5.411]
[1745182984496,5.71555686,1585.6,1585.5,5.411]
[1745182990541,5.16555686,1585.6,1585.5,5.411]
[1745182991219,5.71555686,1585.6,1585.5,5.411]
[1745182992943,5.16555686,1585.6,1585.5,5.411]
[1745182997873,6.14,1585.7,1585.5,6.196]
[1745182998233,6.14,1585.7,1585.6,0.785]
[1745182998438,5.16555686,1585.9,1585.6,0.785]
[1745182998638,5.16555686,1585.9,1585.7,0.0630553]
[1745182999033,5.71555686,1586.1,1585.8,0.785]
[1745182999236,5.71555686,1586.1,1585.9,5.412]
[1745182999429,5.71555686,1586.1,1585.9,5.47504955]
[1745182999666,5.71555686,1586.1,1585.9,5.412]
[1745183000265,7.10540729,1586.1,1585.9,5.412]
[1745183000474,5.79376796,1586.1,1585.9,5.412]
[1745183001274,0.55,1586.0,1585.9,5.412]
[1745183004485,0.8314,1585.9,1585.5,0.9608]
[1745183004647,5.16555686,1585.6,1585.5,0.9608]
[1745183004978,17.85251372,1585.6,1585.5,5.5732]
[1745183005181,18.10285151,1585.6,1585.5,5.5732]
[1745183005557,18.56472847,1585.6,1585.5,5.5732]
[1745183005970,18.56472847,1585.6,1584.9,54.008]
[1745183005971,0.8314,1585.4,1584.9,54.008]
[1745183006174,3.8314,1585.2,1585.0,5.41]
[1745183006378,8.24376796,1585.1,1585.0,5.41]
[1745183006680,8.79376796,1585.1,1585.0,5.41]
[1745183007041,9.2630905,1585.1,1585.0,5.41]
[1745183008181,1.3234,1585.0,1584.4,0.7797]
[1745183008483,5.16555686,1584.7,1584.5,59.425]
[1745183021905,5.95085686,1584.7,1584.5,59.425]
[1745183023428,5.16555686,1584.7,1584.5,59.425]
[1745183025558,1.4135111,1584.6,1584.5,54.014]
[1745183025758,1.3353,1584.6,1584.5,59.427]
[1745183026120,5.16555686,1584.7,1584.5,59.427]
[1745183031019,0.55,1584.6,1584.5,54.014]
[1745183031248,0.55,1584.6,1584.5,59.428]
[1745183032268,1.3811111,1584.6,1584.5,54.014]
[1745183032577,10.69185198,1584.6,1584.5,59.428]
[1745183034676,4.3811111,1584.6,1584.5,59.428]
[1745183035004,3.55,1584.6,1584.5,59.428]
[1745183035283,5.24376796,1584.7,1584.5,59.428]
[1745183035449,5.16555686,1584.7,1584.5,59.428]
[1745183046631,0.55,1584.6,1584.5,59.428]
[1745183047021,4.349,1584.6,1584.5,59.428]
[1745183047227,5.42480944,1584.6,1584.5,59.428]
[1745183047824,5.42480944,1584.6,1584.5,54.014]
[1745183048039,5.42480944,1584.6,1584.5,59.428]
[1745183048241,11.56480944,1584.6,1584.5,59.428]
[1745183050054,11.48659834,1584.6,1584.5,59.428]
[1745183050230,10.489,1584.6,1584.5,59.428]
[1745183050608,10.5672111,1584.6,1584.5,59.428]
[1745183051233,10.489,1584.6,1584.5,59.428]
[1745183052047,10.5672111,1584.6,1584.5,59.428]
[1745183054085,6.14,1584.6,1584.5,59.428]
[1745183054386,3.0,1584.6,1584.5,59.428]
[1745183055354,5.24376796,1584.7,1584.5,59.428]
[1745183055355,5.16555686,1584.7,1584.5,59.428]
[1745183064810,5.16555686,1584.7,1584.5,54.014]
[1745183064970,7.06331255,1584.7,1584.6,5.414]
[1745183065802,5.71555686,1584.7,1584.6,5.414]
[1745183068767,5.16555686,1584.7,1584.6,5.414]
[1745183071907,5.71555686,1584.7,1584.6,5.414]
[1745183077403,5.71555686,1584.7,1584.6,59.46]
[1745183077622,5.16555686,1584.7,1584.6,59.46]
[1745183077918,5.16555686,1584.9,1584.7,0.8013]
[1745183078126,5.16555686,1584.9,1584.7,0.86439506]
[1745183078328,5.7130905,1585.1,1584.7,0.86439506]
[1745183078624,5.16555686,1585.1,1584.7,0.86439506]
[1745183079217,11.38376796,1585.3,1584.7,0.86439506]
[1745183079419,5.16555686,1585.3,1584.7,0.86439506]
[1745183079620,5.16555686,1585.3,1584.7,0.8013]
[1745183080203,5.16555686,1585.3,1584.9,0.7952]
[1745183080402,5.16555686,1585.3,1585.0,6.2702806]
[1745183080603,5.16555686,1585.3,1585.1,5.412]
[1745183080824,5.16555686,1585.3,1585.2,0.7952]
[1745183081421,5.24376796,1585.5,1585.2,0.7952]
[1745183081701,5.16555686,1585.6,1585.2,0.85827819]
[1745183082004,5.16555686,1585.6,1585.2,0.85826774]
[1745183082839,5.16555686,1585.6,1585.2,0.7952]
[1745183083637,5.16555686,1585.6,1585.3,0.86856746]
[1745183083867,5.16555686,1585.6,1585.4,54.037]
[1745183084001,5.16555686,1585.6,1585.5,5.412]
[1745183085021,8.16555686,1585.8,1585.6,0.8055]
[1745183085214,6.14,1585.9,1585.6,0.8055]
[1745183085434,5.16555686,1585.8,1585.6,0.8055]
[1745183086518,5.79376796,1586.0,1585.6,0.8055]
[1745183086718,5.71555686,1586.0,1585.7,0.06305695]
[1745183087119,5.16555686,1586.0,1585.8,0.8055]
[1745183087306,5.16555686,1586.0,1585.9,5.411]
[1745183088120,11.30555686,1586.2,1585.9,5.411]
[1745183088936,5.16555686,1586.2,1585.9,5.411]
[1745183089453,5.16555686,1586.2,1585.5,6.0]
[1745183089454,5.98925686,1586.0,1585.5,6.0]
[1745183089616,5.16555686,1585.7,1585.6,5.41]
[1745183089948,0.55,1585.6,1585.4,54.037]
[1745183090250,0.55,1585.6,1585.5,5.41]
[1745183091218,5.71555686,1585.6,1585.5,5.41]
[1745183091550,0.793,1585.5,1585.1,0.8182]
[1745183091753,5.16555686,1585.2,1584.7,0.8182]
[1745183091952,5.16555686,1585.2,1584.9,0.8182]
[1745183093320,5.16555686,1585.2,1584.9,0.88128736]
[1745183093555,5.16555686,1585.2,1584.9,0.8182]
[1745183094663,5.16555686,1585.2,1584.8,59.427]
[1745183095162,5.16555686,1585.0,1584.9,5.409]
[1745183098529,5.93945686,1585.0,1584.9,5.409]
[1745183100264,5.16555686,1585.0,1584.9,5.409]
[1745183100454,11.30555686,1585.2,1584.9,5.409]
[1745183100638,11.38376796,1585.2,1584.9,5.409]
[1745183100974,0.55,1585.1,1584.9,5.409]
[1745183101827,1.4273111,1585.1,1584.9,5.409]
[1745183102064,5.16555686,1585.0,1584.9,5.409]
[1745183103472,5.71555686,1585.0,1584.9,5.409]
[1745183103956,5.71555686,1585.0,1584.8,54.017]
[1745183104154,6.37484366,1585.0,1584.9,5.41]
[1745183104771,6.37484366,1585.0,1584.8,54.017]
[1745183104772,1.3491,1584.9,1584.8,54.017]
[1745183105072,4.4273111,1584.9,1584.8,59.427]
[1745183109858,0.0782111,1584.9,1584.8,59.427]
[1745183110159,6.898,1585.2,1584.8,59.427]
[1745183111274,11.38376796,1585.5,1584.9,0.7656]
[1745183112579,11.30555686,1585.5,1584.9,0.7656]
[1745183113077,11.38376796,1585.5,1584.9,0.7656]
[1745183113579,11.30555686,1585.5,1584.9,0.7656]
[1745183113778,5.16555686,1585.5,1584.9,6.0]
[1745183114086,5.16555686,1585.5,1585.0,0.7656]
[1745183114658,5.24376796,1585.5,1585.0,0.7656]
[1745183116695,5.16555686,1585.1,1584.8,54.7755]
[1745183116887,5.16555686,1585.1,1584.9,5.41]
[1745183117366,5.16555686,1585.4,1585.0,0.7585]
[1745183117884,5.16555686,1585.2,1585.0,0.7585]
[1745183118582,5.16555686,1585.2,1585.1,5.41]
[1745183119785,5.71555686,1585.2,1585.1,5.41]
[1745183119951,0.55,1585.1,1584.8,54.017]
[1745183120150,5.16555686,1585.0,1584.9,5.41]
[1745183124486,0.55,1584.9,1584.8,54.017]
[1745183124643,0.55,1584.9,1584.8,59.427]
[1745183127091,6.14,1585.1,1584.8,60.1793]
[1745183127484,5.24376796,1585.2,1584.8,60.1793]
[1745183128099,5.16555686,1585.0,1584.8,60.1793]
[1745183131785,5.16555686,1585.0,1584.9,0.36129515]
[1745183132187,5.16555686,1585.0,1584.8,60.1793]
[1745183132390,5.16555686,1585.0,1584.9,0.39986599]
[1745183132711,5.16555686,1585.0,1584.8,60.1793]
[1745183132999,5.16555686,1585.0,1584.9,0.39986599]
[1745183133401,5.16555686,1585.0,1584.8,60.1793]
[1745183133606,5.16555686,1585.0,1584.9,0.39986599]
[1745183133983,5.16555686,1585.0,1584.8,60.1793]
[1745183134276,5.16555686,1585.0,1584.9,0.39986599]
[1745183134482,5.16555686,1585.0,1584.8,60.1793]
[1745183134680,5.16555686,1585.0,1584.9,0.39986599]
[1745183135277,5.16555686,1585.0,1584.8,60.1793]
[1745183135501,5.16555686,1585.0,1584.9,0.39986599]
[1745183135883,5.71555686,1585.2,1584.8,60.1793]
[1745183136085,5.71555686,1585.2,1584.9,0.39986599]
[1745183136385,5.71555686,1585.2,1584.8,60.1793]
[1745183136585,5.71555686,1585.2,1585.0,0.39986599]
[1745183136776,5.71555686,1585.2,1584.8,60.1793]
[1745183136977,5.71555686,1585.2,1585.1,0.39986599]
[1745183137500,5.71555686,1585.2,1584.8,60.1793]
[1745183137801,5.71555686,1585.2,1584.9,0.39986599]
[1745183138308,5.71555686,1585.2,1585.0,0.39986599]
[1745183138602,5.16555686,1585.2,1585.0,0.39986599]
[1745183138808,5.16555686,1585.2,1584.8,60.1793]
[1745183138978,5.16555686,1585.2,1585.1,0.39526571]
[1745183139508,5.16555686,1585.2,1584.8,60.1793]
[1745183139712,5.16555686,1585.2,1585.1,0.39526571]
[1745183139890,5.16555686,1585.2,1584.8,60.1793]
[1745183140090,5.16555686,1585.2,1584.9,0.39526571]
[1745183140287,5.16555686,1585.2,1584.8,60.1793]
[1745183140610,5.16555686,1585.2,1584.9,0.39526571]
[1745183140909,5.16555686,1585.2,1584.8,60.1793]
[1745183141106,5.16555686,1585.2,1584.9,0.39526571]
[1745183141287,5.16555686,1585.2,1584.8,60.1793]
[1745183141612,5.16555686,1585.2,1584.9,0.39526571]
[1745183141969,5.16555686,1585.2,1584.8,60.1793]
[1745183142172,5.16555686,1585.2,1585.0,0.39526571]
[1745183142397,5.16555686,1585.2,1584.8,60.1793]
[1745183142593,5.16555686,1585.2,1585.1,0.39526571]
[1745183142805,5.16555686,1585.2,1584.8,60.1793]
[1745183143006,5.16555686,1585.2,1585.1,0.39526571]
[1745183143185,5.16555686,1585.2,1584.8,60.1793]
[1745183143387,5.16555686,1585.2,1585.1,0.39526571]
[1745183143598,5.16555686,1585.2,1584.8,60.1793]
[1745183143799,5.16555686,1585.2,1585.1,0.39526571]
[1745183143975,5.16555686,1585.2,1584.8,60.1793]
[1745183144498,5.16555686,1585.2,1584.9,0.39526571]
[1745183144699,5.16555686,1585.2,1584.8,60.1793]
[1745183144997,5.16555686,1585.2,1584.9,0.39526571]
[1745183145313,5.16555686,1585.2,1584.8,60.1793]
[1745183145489,5.16555686,1585.2,1584.9,0.39526571]
[1745183145807,5.16555686,1585.2,1584.8,60.1793]
[1745183145985,5.16555686,1585.2,1585.0,0.39526571]
[1745183146187,5.16555686,1585.2,1584.8,60.1793]
[1745183146606,5.16555686,1585.2,1584.9,0.39526571]
[1745183147112,5.16555686,1585.2,1585.0,0.39526571]
[1745183147327,5.16555686,1585.2,1584.8,60.1793]
[1745183147470,5.16555686,1585.2,1585.1,0.39526571]
[1745183147921,5.16555686,1585.2,1584.9,5.409]
[1745183148216,5.16555686,1585.2,1585.1,0.39526571]
[1745183148713,5.16555686,1585.2,1584.9,5.409]
[1745183148922,5.16555686,1585.2,1585.0,0.39526571]
[1745183149419,5.16555686,1585.2,1585.0,0.45834894]
[1745183152326,5.16555686,1585.2,1585.1,54.029]
[1745183152827,5.16555686,1585.2,1585.1,54.42426571]
[1745183157145,5.16555686,1585.2,1585.1,59.83326571]
[1745183175277,2.38389703,1585.2,1585.1,59.83326571]
[1745183205980,2.38293685,1585.2,1585.1,59.83326571]
[1745183206215,0.0782111,1585.6,1585.2,0.8091]
[1745183206216,3.21239703,1585.6,1585.2,0.8091]
[1745183206576,2.38389703,1585.4,1585.3,0.34672291]
[1745183208378,3.14199703,1585.4,1585.3,0.34672291]
[1745183208579,3.14199703,1585.4,1585.1,65.438]
[1745183208812,0.7581,1585.4,1585.2,0.40979892]
[1745183209025,2.38389703,1585.3,1585.2,0.40979892]
[1745183209322,9.07589406,1585.3,1585.2,5.75172291]
[1745183209606,9.98348347,1585.3,1585.2,5.75172291]
[1745183210184,9.98348347,1585.3,1585.2,5.405]
[1745183210396,9.98348347,1585.3,1585.2,5.75172291]
[1745183211926,6.98348347,1585.3,1585.2,5.75172291]
[1745183213021,4.59958644,1585.3,1585.2,5.75172291]
[1745183213186,3.69199703,1585.3,1585.2,5.75172291]
[1745183214310,6.07589406,1585.3,1585.2,5.75172291]
[1745183218329,3.69199703,1585.3,1585.2,5.75172291]
[1745183220703,6.07589406,1585.3,1585.2,5.75172291]
[1745183223951,3.69199703,1585.3,1585.2,5.75172291]
[1745183224749,6.07589406,1585.3,1585.2,5.75172291]
[1745183225848,15.87900879,1585.3,1585.2,5.75172291]
[1745183226445,15.87900879,1585.3,1585.2,5.74569308]
[1745183227844,22.18696312,1585.3,1585.2,5.74569308]
[1745183228008,1.3074,1585.2,1585.1,54.029]
[1745183228212,1.3856111,1585.2,1585.1,59.433]
[1745183228424,3.61205852,1585.2,1585.1,59.433]
[1745183232738,3.53384742,1585.2,1585.1,59.433]
[1745183232939,3.61205852,1585.2,1585.1,59.433]
[1745183234118,1.3856111,1585.2,1585.1,59.433]
[1745183235640,1.3856111,1585.2,1585.1,59.74412196]
[1745183243177,7.69396335,1585.2,1585.1,59.74412196]
[1745183243357,3.0,1585.1,1585.0,54.034]
[1745183243655,5.38389703,1585.1,1585.0,59.438]
[1745183243823,6.06084784,1585.1,1585.0,59.438]
[1745183247362,0.55,1585.0,1584.5,0.9033]
[1745183247553,2.38389703,1584.6,1584.5,0.9033]
[1745183247958,4.76779406,1584.6,1584.5,0.9033]
[1745183248555,2.38389703,1584.6,1584.5,0.9033]
[1745183249096,4.76779406,1584.6,1584.5,0.9033]
[1745183249273,2.38389703,1584.6,1584.5,0.9033]
[1745183250470,4.76779406,1584.6,1584.5,0.9033]
[1745183252277,0.0782111,1584.9,1584.5,0.9033]
[1745183252580,2.38389703,1584.6,1584.5,0.9033]
[1745183255384,2.38389703,1584.6,1584.5,60.3473]
[1745183256879,5.31779406,1584.6,1584.5,59.7744108]
[1745183257781,2.93389703,1584.6,1584.5,59.7744108]
[1745183257961,5.31779406,1584.6,1584.5,59.7744108]
[1745183258672,5.39600516,1584.6,1584.5,59.7744108]
[1745183258855,0.55,1584.3,1584.2,54.4383233]
[1745183259060,0.55,1584.3,1584.2,59.8413233]
[1745183260401,2.93389703,1584.3,1584.2,59.8413233]
[1745183260705,3.75999703,1584.3,1584.2,59.8413233]
[1745183260871,2.62946965,1584.3,1584.2,59.8413233]
[1745183261281,5.01336668,1584.3,1584.2,59.8413233]
[1745183261484,0.7515,1584.2,1584.0,0.5]
[1745183261816,4.76779406,1584.1,1584.0,0.5]
[1745183262011,5.38254458,1584.1,1584.0,5.903]
[1745183262176,2.99864755,1584.1,1584.0,5.903]
[1745183262714,3.41580328,1584.1,1584.0,5.903]
[1745183263371,6.20557921,1584.1,1584.0,5.903]
[1745183264170,5.17367296,1584.1,1584.0,6.7297]
[1745183264373,5.17367296,1584.1,1584.0,6.95153204]
[1745183265397,5.17367296,1584.1,1584.0,61.00953204]
[1745183267912,0.0782111,1584.4,1584.0,61.00953204]
[1745183268123,5.17367296,1584.5,1584.1,0.81642001]
[1745183268277,5.17367296,1584.5,1584.2,0.06311484]
[1745183268477,5.17367296,1584.3,1584.2,0.22864886]
[1745183268692,5.17367296,1584.3,1584.1,0.7533]
[1745183268971,5.17367296,1584.3,1584.2,0.22864886]
[1745183269174,5.17367296,1584.3,1584.1,0.7533]
[1745183269412,5.17367296,1584.3,1584.2,0.22864886]
[1745183269616,5.17367296,1584.3,1584.1,0.7533]
[1745183269778,5.17367296,1584.3,1584.2,0.22864886]
[1745183270109,5.17367296,1584.3,1584.1,0.7533]
[1745183270287,5.17367296,1584.3,1584.2,0.22864886]
[1745183270712,5.17367296,1584.3,1584.1,0.7533]
[1745183270908,5.17367296,1584.3,1584.2,0.22864886]
[1745183271320,5.17367296,1584.3,1584.1,0.7533]
[1745183271479,5.17367296,1584.3,1584.2,0.22864886]
[1745183271813,5.17367296,1584.3,1584.1,0.81641937]
[1745183272016,5.17367296,1584.3,1584.2,0.22864886]
[1745183272216,5.17367296,1584.3,1584.1,0.81641937]
[1745183272399,5.17367296,1584.3,1584.2,0.22864886]
[1745183272712,5.17367296,1584.3,1584.1,0.81641937]
[1745183272881,5.17367296,1584.3,1584.2,0.22864886]
[1745183273284,5.65418645,1584.5,1584.1,0.81641937]
[1745183273499,5.17367296,1584.5,1584.2,0.22864886]
[1745183273981,5.17367296,1584.8,1584.3,1.00584886]
[1745183274216,5.17367296,1584.8,1584.5,0.7772]
[1745183274396,5.17367296,1584.8,1584.6,0.28584959]
[1745183274921,5.17367296,1584.8,1584.7,0.7772]
[1745183275421,5.17367296,1584.8,1584.7,0.99994919]
[1745183280413,5.17367296,1584.8,1584.7,0.22274919]
[1745183280623,5.17367296,1584.8,1584.6,0.7594]
[1745183280808,5.17367296,1584.8,1584.7,0.21344236]
[1745183281128,5.17367296,1584.8,1584.6,0.7594]
[1745183281289,5.17367296,1584.8,1584.7,0.21344236]
[1745183281619,5.17367296,1584.8,1584.6,0.7594]
[1745183281795,5.17367296,1584.8,1584.7,0.21344236]
[1745183281995,5.17367296,1584.8,1584.6,0.7594]
[1745183282295,5.17367296,1584.8,1584.7,0.21344236]
[1745183282721,5.17367296,1584.8,1584.6,0.7594]
[1745183282907,5.17367296,1584.8,1584.7,0.21344236]
[1745183283634,5.17367296,1584.8,1584.4,6.1601]
[1745183283839,5.17367296,1584.8,1584.5,0.21344236]
[1745183284447,5.17367296,1584.8,1584.6,54.045]
[1745183284606,0.9061111,1584.7,1584.6,54.045]
[1745183284807,0.9061111,1584.7,1584.6,59.445]
[1745183285603,0.55,1584.6,1584.5,54.045]
[1745183285817,15.50847845,1584.6,1584.5,5.4]
[1745183286003,17.69818167,1584.6,1584.5,5.4]
[1745183286202,18.52608167,1584.6,1584.5,5.4]
[1745183287015,12.21534079,1584.6,1584.5,5.4]
[1745183287214,12.29355189,1584.6,1584.5,5.4]
[1745183293313,0.828,1584.3,1584.0,0.5]
[1745183293533,5.17367296,1584.1,1584.0,0.5]
[1745183295530,5.17367296,1584.1,1584.0,59.956]
[1745183295946,5.17367296,1584.1,1584.0,60.14851628]
[1745183299684,5.72367296,1584.1,1584.0,60.14851628]
[1745183299864,7.13184026,1584.1,1584.0,60.14851628]
[1745183301484,13.27184026,1584.1,1584.0,54.74751628]
[1745183301723,13.27184026,1584.1,1584.0,60.14951628]
[1745183303277,13.73774569,1584.1,1584.0,60.14951628]
[1745183303888,5.17367296,1584.1,1584.0,60.92081628]
[1745183311895,5.17367296,1584.1,1584.0,60.14951628]
[1745183315800,5.17367296,1584.3,1584.1,0.7744]
[1745183316008,5.17367296,1584.6,1584.2,0.83751966]
[1745183316170,5.17367296,1584.4,1584.2,0.98747989]
[1745183317210,5.72367296,1584.4,1584.3,5.4]
[1745183317580,5.72367296,1584.4,1584.3,5.61268676]
[1745183321509,5.72367296,1584.4,1584.3,59.67468676]
[1745183322615,5.17367296,1584.4,1584.3,59.67468676]
[1745183323111,1.62103967,1584.6,1584.3,60.48318676]
[1745183323311,5.17367296,1584.5,1584.3,60.48318676]
[1745183324710,5.99787296,1584.5,1584.3,59.67468676]